[Event "Frauenbundesliga 2024-25"]
[Site "Germany"]
[Date "2025.01.25"]
[Round "3.9"]
[White "Schloffer, Jasmin-Denise"]
[Black "Sieber, Fiona"]
[Result "0-1"]
[Annotator "TA"]
[ECO "E48"]
[WhiteElo "2157"]
[BlackElo "2263"]
[PlyCount "86"]
[EventDate "2024.11.06"]
[EventType "team-tourn"]
[EventCountry "GER"]
[SourceTitle "playchess.com"]
[Source "ChessBase"]
[SourceQuality "1"]
[WhiteTeam "Bayern Muenchen"]
[BlackTeam "Rodewischer Schachmiezen"]
[TimeControl "40/5400+30:1800+30"]

{[%evp 11,86,10,13,-10,-5,0,-3,-17,-15,-8,-4,-19,-21,-17,-20,-39,0,2,45,46,43,1,0,7,0,-21,-29,-9,0,-8,5,0,0,-9,0,0,0,0,0,-16,-13,-22,0,-25,-16,-29,-2,-20,0,-8,0,-37,0,0,0,0,12,7,14,8,7,0,0,0,0,0,0,0,0,-102,-117,-114,-104,-106,-84,-927,-1087]} 1. d4 {[%emt 0:00:03]} Nf6 {[%emt 0:00:08]} 2. c4 {[%emt 0:00:06]} e6 {[%emt 0:00:27]} 3. Nc3 {[%emt 0:00:07]} Bb4 {[%emt 0:00:07]} 4. e3 {[%emt 0:00:05]} O-O {[%emt 0:02:17]} 5. Bd3 {[%emt 0:00:15]} d5 {[%emt 0:01:24]} 6. cxd5 {[%emt 0:00:13]} exd5 {[%emt 0:03:05]} 7. a3 {[%emt 0:00:17] E48: Nimzo-Indian: Rubinstein: 5 Bd3 d5 including 6 Ne2, but excluding 6 a3.} Bd6 {[%emt 0:00:46]} 8. Qc2 {[%emt 0:00:16]} c6 {[%emt 0:01:08]} 9. Nge2 {[%emt 0:00:51] The position is equal.} Nbd7 {[%emt 0:07:16]} 10. Bd2 {[%emt 0:02:20]} Re8 {[%emt 0:03:23]} 11. f3 {[%emt 0:02:31]} c5 {[%emt 0:03:16]} 12. O-O {[%emt 0:12:19]} a6 {[%emt 0:13:49]} 13. Rad1 {[%emt 0:19:04]} Nf8 $146 {[%emt 0:02:46]} (13... b5 14. dxc5 Nxc5 15. Bf5 Qc7 16. h3 Ne6 17. Be1 Bc5 18. Bh4 Bxe3+ 19. Kh1 g5 {½-½ Lazavik,D (2566)-Deac,B (2690) Titled Tuesday intern op 19th Dec Late blitz 2023 (11)}) 14. Kh1 {[%emt 0:06:46]} Be6 {[%emt 0:08:16]} 15. dxc5 {[%emt 0:05:22]} Bxc5 {[%emt 0:00:13]} 16. b4 {[%emt 0:00:14]} Ba7 {[%emt 0:00:25]} 17. Nd4 {[%emt 0:03:09]} Rc8 {[%emt 0:02:09]} 18. Bc1 {[%emt 0:06:17]} Qd6 {[%emt 0:08:58]} 19. Bb2 {[%emt 0:01:52]} Bd7 {[%emt 0:05:11]} 20. Qf2 {[%emt 0:04:23]} Bb8 {[%emt 0:02:30][%csl Gb8][%cal Rd6h2] [#]} 21. g3 {[%emt 0:00:55]} Ba7 {[%emt 0:01:21]} 22. Rfe1 {[%emt 0:04:05]} Bxd4 {[%emt 0:05:57]} 23. exd4 {[%emt 0:00:05]} Rxe1+ {[%emt 0:00:38]} 24. Rxe1 {[%emt 0:00:05]} Ne6 {[%emt 0:00:18]} 25. Ne2 {[%emt 0:09:34][%cal Bc3e2,Be2c1,Bc1b3,Bb3d2,Bd2f3,Bf3e5][%mdl 32]} Bb5 {[%emt 0:03:33]} 26. Bf5 {[%emt 0:06:26]} Re8 {[%emt 0:01:17]} 27. Nc1 {[%emt 0:01:52]} g6 {[%emt 0:01:37]} 28. Bb1 {[%emt 0:01:25]} Rc8 {[%emt 0:07:02] White is weak on the light squares} 29. Nb3 {[%emt 0:02:47]} b6 {[%emt 0:00:49]} 30. Nd2 {[%emt 0:01:48]} Kg7 {[%emt 0:03:01]} 31. f4 {[%emt 0:02:56]} Ng4 {[%emt 0:07:22]} 32. Qg1 {[%emt 0:01:21]} f5 {[%emt 0:01:51]} 33. Nf3 {[%emt 0:01:12]} Nf6 {[%emt 0:00:19]} 34. Ne5 {[%emt 0:00:36]} Ne4 {[%emt 0:01:31]} 35. Qe3 {[%emt 0:00:49]} Kg8 {[%emt 0:02:11]} 36. Kg1 {[%emt 0:03:12]} a5 {[%emt 0:00:10]} 37. bxa5 {[%emt 0:01:44]} bxa5 {[%emt 0:00:01]} 38. Rc1 {[%emt 0:00:16]} Rb8 {[%emt 0:00:29]} 39. Ba1 {[%emt 0:01:39]} Ba4 {[%emt 0:00:35]} 40. Bc2 {[%emt 0:00:26] The position is symmetric and equal} (40. Ba2 $11) 40... Bxc2 $17 {[%emt 0:00:41][%csl Oe4] Strong Square Black (e4)} 41. Rxc2 {[%emt 0:30:09]} Rb1+ {[%emt 0:03:31]} 42. Rc1 {[%emt 0:00:00]} Qb6 {[%emt 0:00:46] Black is more active.} 43. Kg2 $2 {[%emt 0:00:00][%mdl 8192] [#]} (43. Qe1 $17 Rxc1 44. Qxc1) 43... Rxa1 $1 {[%emt 0:01:24][%mdl 512] Weighted Error Value: White=0.31/Black=0.08 (flawless)   Loses game:     	White=1     	---        Mistake:       	White=1     	---        Inaccurate:     	White=2     	Black=4      OK:         	White=9     	Black=11     Best:        	White=1     	Black=2      Brilliant:      	---       	Black=1} 0-1

[Event "Frauenbundesliga 2024-25"]
[Site "Germany"]
[Date "2025.01.25"]
[Round "3.10"]
[White "Movsesian, Julia"]
[Black "Polterauer, Chiara"]
[Result "1/2-1/2"]
[Annotator "TA"]
[ECO "C50"]
[WhiteElo "2212"]
[BlackElo "2098"]
[PlyCount "60"]
[EventDate "2024.11.06"]
[EventType "team-tourn"]
[EventCountry "GER"]
[SourceTitle "playchess.com"]
[Source "ChessBase"]
[SourceQuality "1"]
[WhiteTeam "Rodewischer Schachmiezen"]
[BlackTeam "Bayern Muenchen"]
[TimeControl "40/5400+30:1800+30"]

{[%evp 9,60,15,23,14,18,8,0,-14,21,15,22,20,29,20,18,7,12,0,15,7,48,61,72,72,68,69,154,151,140,63,60,64,77,8,24,35,49,0,97,93,88,89,100,0,0,0,0,0,0,0,0,0,0]} 1. e4 {[%emt 0:00:02]} e5 {[%emt 0:00:06]} 2. Nf3 {[%emt 0:00:22]} Nc6 {[%emt 0:00:06]} 3. Bc4 {[%emt 0:00:17]} Bc5 {[%emt 0:00:14]} 4. d3 {[%emt 0:01:08]} Nf6 {[%emt 0:00:37]} 5. Nc3 {[%emt 0:01:41]} a6 {[%emt 0:04:31]} 6. a4 {[%emt 0:00:57] C50: Hungarian Defence and Giuoco Pianissimo.} d6 {[%emt 0:00:44]} 7. h3 {[%emt 0:00:54]} h6 {[%emt 0:00:11]} 8. Be3 {[%emt 0:01:45]} Ba7 {[%emt 0:00:56]} 9. O-O {[%emt 0:02:43]} O-O {[%emt 0:00:55]} 10. Bxa7 {[%emt 0:05:38]} Rxa7 {[%emt 0:00:17]} 11. d4 {[%emt 0:01:28]} Ra8 {[%emt 0:14:01]} 12. dxe5 {[%emt 0:06:16]} Nxe5 {[%emt 0:04:21]} 13. Ba2 $146 {[%emt 0:03:40]} (13. Nxe5 dxe5 14. Qxd8 Rxd8 15. Rad1 Bd7 16. f4 Be6 17. Rxd8+ Rxd8 18. Bxe6 fxe6 19. fxe5 {½-½ Kilgus,G (2428)-Dobosz,H (2369) AUT-chT 2122 2021 (9.3)}) 13... Nxf3+ {[%emt 0:06:59]} 14. Qxf3 {[%emt 0:00:07]} Be6 {[%emt 0:00:13] [#]} 15. e5 $1 {[%emt 0:01:33]} Nd7 {[%emt 0:16:08]} (15... dxe5 16. Bxe6) 16. exd6 {[%emt 0:05:53] White is more active.} cxd6 {[%emt 0:00:12]} 17. Qxb7 {[%emt 0:01:46]} Rb8 {[%emt 0:02:07]} (17... Qb8 $14 18. Qxb8 Raxb8) 18. Qxa6 $16 {[%emt 0:02:27]} Nc5 {[%emt 0:00:10]} 19. Qc6 {[%emt 0:05:32]} ({Better is} 19. Qe2 $16) 19... Rb6 $1 $14 {[%emt 0:01:00]} 20. Qf3 {[%emt 0:02:14]} Rxb2 {[%emt 0:00:22]} 21. Rfd1 {[%emt 0:12:52]} (21. Bxe6 $16 fxe6 22. Qd1) 21... Rxc2 {[%emt 0:11:28][%cal Oc5a4]} (21... Nxa4 {simplifies} 22. Nxa4 Rxa2 23. Rxa2 Bxa2 24. Nc3 Be6) 22. Bb1 {[%emt 0:01:15]} Rb2 {[%emt 0:00:15]} 23. Nb5 {[%emt 0:04:05]} (23. a5 $14) 23... Qf6 {[%emt 0:10:34]} (23... Qg5 $11) 24. Qxf6 $16 {[%emt 0:12:01]} (24. Nxd6 Qxf3 25. gxf3 Rd8 $17) 24... gxf6 {[%emt 0:00:08]} 25. Nxd6 {[%emt 0:03:42]} Rd8 {[%emt 0:09:06]} 26. a5 {[%emt 0:03:30] Inhibits Rb6.} (26. Bf5 $16) 26... Nb3 $11 {[%emt 0:00:49] The position is equal.} (26... Nb7 27. a6 Nxd6 (27... Rxd6 $2 {perishes.} 28. Be4 $18) 28. a7 $16) 27. Ra2 {[%emt 0:12:03]} Rxa2 {[%emt 0:03:26]} 28. Bxa2 {[%emt 0:00:05]} Nxa5 {[%emt 0:00:15]} 29. Bxe6 {[%emt 0:00:28]} fxe6 {[%emt 0:00:05]} 30. Ra1 {[%emt 0:01:51]} Rxd6 {[%emt 0:02:05] Weighted Error Value: White=0.20 (precise) /Black=0.20 (precise)   Mistake:       	White=4     	Black=2      Inaccurate:     	---       	Black=2      OK:         	White=7     	Black=10     Best:        	White=4     	---        Strong:       	---       	Black=1} 1/2-1/2

[Event "Frauenbundesliga 2024-25"]
[Site "Germany"]
[Date "2025.01.25"]
[Round "3.10"]
[White "Ciolacu, Alessia-Mihaela"]
[Black "Atalik, Ekaterina"]
[Result "1-0"]
[Annotator "TA"]
[ECO "D30"]
[WhiteElo "2124"]
[BlackElo "2395"]
[PlyCount "105"]
[EventDate "2024.11.06"]
[EventType "team-tourn"]
[EventCountry "GER"]
[SourceTitle "playchess.com"]
[Source "ChessBase"]
[SourceQuality "1"]
[WhiteTeam "Hemer 1932"]
[BlackTeam "Schwaebisch Hall"]
[TimeControl "40/5400+30:1800+30"]

{[%evp 9,105,19,28,12,35,27,29,17,17,20,20,18,19,19,16,10,23,14,12,8,16,12,11,-18,0,0,0,0,20,25,19,37,50,38,47,44,46,36,55,65,59,48,45,51,79,51,192,201,250,247,237,251,251,236,261,265,256,227,263,266,242,252,278,272,355,287,391,394,410,395,400,403,410,208,204,197,202,214,203,193,212,161,149,136,222,222,264,134,204,204,29963,29964,29956,29958,5617,5617,4622,4618]} 1. d4 {[%emt 0:00:04]} d5 {[%emt 0:00:18]} 2. c4 {[%emt 0:00:09]} c6 {[%emt 0:00:16]} 3. Nf3 {[%emt 0:00:59]} Nf6 {[%emt 0:00:16]} 4. e3 {[%emt 0:00:17]} e6 {[%emt 0:03:04]} 5. b3 {[%emt 0:00:34]} Bd6 {[%emt 0:00:30]} 6. Bd3 {[%emt 0:01:53] D30: Queen's Gambit Declined: Systems without Nc3.} O-O {[%emt 0:00:10]} 7. Bb2 {[%emt 0:02:18]} b6 {[%emt 0:01:05]} 8. Nbd2 {[%emt 0:01:03] White has an edge.} Bb7 {[%emt 0:00:24]} 9. O-O {[%emt 0:01:04]} Nbd7 {[%emt 0:04:27]} 10. Ne5 {[%emt 0:03:20]} c5 {[%emt 0:04:54]} 11. Nxd7 {[%emt 0:03:46]} (11. cxd5 {keeps more tension.} exd5 12. Rc1 Qe7 13. Nxd7 Nxd7 14. Qh5) 11... Nxd7 {[%emt 0:02:08]} 12. cxd5 {[%emt 0:04:50]} exd5 {[%emt 0:02:43]} 13. dxc5 {[%emt 0:01:49]} Nxc5 {[%emt 0:02:47]} 14. Bc2 {[%emt 0:10:24]} Qe7 {[%emt 0:06:36]} 15. Qg4 {[%emt 0:07:12][%csl Gb2][%cal Rg4g7]} g6 {[%emt 0:05:57]} 16. Rfd1 $146 {[%emt 0:14:50]} (16. Qd4 $5 f6 $8 17. Nf3 $14) (16. Nf3 Ne4 17. Nd4 f5 18. Qe2 Be5 19. a4 Rac8 20. Bxe4 dxe4 21. Ba3 Bd6 22. Bxd6 Qxd6 {1-0 Mkrtchyan,S (2145)-Suleymanli,A (2353) Chigorin Memorial 25th 2017 (4)}) 16... Rac8 {[%emt 0:04:06]} 17. Qd4 {[%emt 0:09:19]} f6 {[%emt 0:03:42]} 18. Nf3 {[%emt 0:00:52] Prevents Be5.} Nd7 {[%emt 0:18:48]} 19. Qd2 {[%emt 0:02:20]} Ne5 {[%emt 0:04:49] aiming for ...Nxf3+.} 20. Nd4 {[%emt 0:02:05]} Ba6 {[%emt 0:01:29]} 21. a3 {[%emt 0:07:23] Repels Bb4} Rc7 {[%emt 0:07:18]} 22. h3 {[%emt 0:02:26]} Rfc8 {[%emt 0:01:54]} 23. Bb1 {[%emt 0:04:30]} Nf7 {[%emt 0:05:55]} 24. Bd3 {[%emt 0:07:19]} Bxd3 {[%emt 0:01:22]} 25. Qxd3 {[%emt 0:00:06]} Qe5 {[%emt 0:06:49]} 26. f4 {[%emt 0:02:57]} Qe7 {[%emt 0:00:24]} 27. Nb5 {[%emt 0:01:42][%csl LRc7,LRd5]} Rd7 {[%emt 0:03:28] Loses the game.} (27... Rc2 $14 28. Rac1 Rxc1 29. Bxc1 (29. Rxc1 Rxc1+ 30. Bxc1 a5 $16) 29... Rd8) 28. Nc3 $1 $18 {[%emt 0:01:40]} (28. Qxd5 Qxe3+ 29. Kh1 Rc5 $15 (29... Qxf4 30. Nxd6 Rxd6 31. Qb7 $17)) 28... Bc5 {[%emt 0:04:48][%cal Bd6c5,Bc5e3,Be3f4][%mdl 32]} 29. Nxd5 {[%emt 0:00:25]} Rxd5 {[%emt 0:00:13]} 30. Qxd5 {[%emt 0:00:02]} Bxe3+ {[%emt 0:00:45]} 31. Kh1 {[%emt 0:00:39]} Rc2 {[%emt 0:00:50]} 32. Bd4 {[%emt 0:04:19]} Bxf4 {[%emt 0:00:07]} 33. Re1 {[%emt 0:00:42]} Qd6 {[%emt 0:01:53]} 34. Qxd6 {[%emt 0:01:01]} Nxd6 {[%emt 0:00:05]} 35. Bxf6 {[%emt 0:00:22]} Nf5 {[%emt 0:00:08] [#]} 36. Be5 $1 {[%emt 0:00:24]} Bg5 {[%emt 0:01:22]} 37. Rab1 {[%emt 0:00:35]} Bh4 {[%emt 0:00:30]} 38. Rbc1 {[%emt 0:00:58]} Ra2 {[%emt 0:00:33]} 39. Rc8+ {[%emt 0:00:36]} Kf7 {[%emt 0:00:04]} 40. Rc7+ {[%emt 0:00:09]} Kf8 {[%emt 0:00:28]} 41. Re4 {[%emt 0:31:57]} (41. Rf1 $142 {g4 is the strong threat.} Re2 42. Bh2 (42. Rxh7 Rxe5 43. Rxh4 Kg7 $18)) 41... Ng3+ {[%emt 0:06:52]} 42. Bxg3 {[%emt 0:00:00]} Bxg3 {[%emt 0:00:03][%mdl 4096] Endgame [#] KRR-KRB} 43. Rc1 {[%emt 0:00:00] Prevents Ra1} (43. Rxa7 $2 Ra1+) (43. Rc8+ Kg7 44. Rc1 (44. Re7+ Kf6 $17) 44... Rxa3 $16) 43... Rxa3 {[%emt 0:00:22]} 44. Rf1+ {[%emt 0:00:00]} Kg7 {[%emt 0:00:18]} 45. Re7+ {[%emt 0:00:00]} Kh6 {[%emt 0:00:14]} 46. Re3 {[%emt 0:00:00] White is more active.} Bd6 {[%emt 0:00:16]} (46... Bb8 $16 47. Rd1 b5) 47. Rd3 {[%emt 0:00:00]} Bc5 {[%emt 0:01:13]} 48. h4 {[%emt 0:00:00]} ({Better is} 48. Rf7 $18) 48... a5 {[%emt 0:04:43]} (48... Kh5 $16) 49. g4 {[%emt 0:00:00]} a4 $2 {[%emt 0:00:40]} (49... Kg7 $18 50. Rd7+ Kg8) 50. Rd7 {[%emt 0:01:15]} Rxb3 {[%emt 0:06:26]} 51. Rff7 {[%emt 0:00:43][%csl Gd7][%cal Rf7h7]} Rh3+ {[%emt 0:05:01]} 52. Kg2 {[%emt 0:00:05][%csl Gd7][%cal Rf7h7]} Rxh4 {[%emt 0:00:07]} 53. Kg3 {[%emt 0:00:33] Weighted Error Value: White=0.12 (very precise) /Black=0.32  Mistake:       	White=2     	Black=4      Inaccurate:     	White=2     	Black=3      OK:         	White=20    	Black=9      Best:        	White=4     	Black=5      Strong:       	White=2     	---} ({Stronger than} 53. Rxh7+ Kg5 54. Rd5+ Kxg4 $11) 1-0

[Event "Frauenbundesliga 2024-25"]
[Site "Germany"]
[Date "2025.01.25"]
[Round "3.10"]
[White "Otikova, Elina"]
[Black "Fuchs, Judith"]
[Result "1-0"]
[Annotator "TA"]
[ECO "B59"]
[WhiteElo "2089"]
[BlackElo "2226"]
[PlyCount "94"]
[EventDate "2024.11.06"]
[EventType "team-tourn"]
[EventCountry "GER"]
[SourceTitle "playchess.com"]
[Source "ChessBase"]
[SourceQuality "1"]
[WhiteTeam "1871 Loeberitz"]
[BlackTeam "Hamburger SK"]
[TimeControl "40/5400+30:1800+30"]

{[%evp 15,94,7,18,9,39,-21,0,-10,27,0,41,0,27,19,82,82,58,37,46,38,53,30,22,18,17,12,29,-2,28,-18,47,0,8,8,6,7,87,84,86,92,91,57,50,15,27,27,50,39,46,0,0,0,0,0,0,0,0,0,0,6,27,0,15,6,31,0,0,0,25,14,20,12,9,14,25,25,25,25,40,29,39]} 1. e4 {[%emt 0:00:02]} c5 {[%emt 0:00:05]} 2. Nf3 {[%emt 0:00:06][%cal Bg1f3,Bf3d4,Bd4b3,Bb3d2,Bd2c4][%mdl 32]} d6 {[%emt 0:00:06]} 3. d4 {[%emt 0:00:07]} cxd4 {[%emt 0:00:05]} 4. Nxd4 {[%emt 0:00:06]} Nf6 {[%emt 0:00:10]} 5. Nc3 {[%emt 0:00:13]} Nc6 {[%emt 0:00:06]} 6. Be2 {[%emt 0:01:03]} e5 {[%emt 0:00:09]} 7. Nb3 {[%emt 0:00:29]} Be7 {[%emt 0:00:16]} 8. O-O {[%emt 0:04:40]} O-O {[%emt 0:00:17]} 9. Re1 {[%emt 0:04:46] B59: Classical Sicilian: 6 Be2 e5 7 Nb3.} a5 {[%emt 0:02:33]} 10. h3 $146 {[%emt 0:05:22]} ({Better is} 10. Be3 $14) (10. a4 Nb4 11. Bf3 Be6 12. Nb5 Rc8 13. c3 Nd3 14. Qxd3 Bxb3 15. Bg5 Rc6 16. Rec1 Bc4 {1-0 Aronian,L (2745)-Wojtaszek,R (2670) Warsaw Superbet Rapid 2023 (7)}) 10... a4 $11 {[%emt 0:06:54]} 11. Nd2 {[%emt 0:00:23] The position is equal.} Nd4 {[%emt 0:02:22]} 12. Bf1 {[%emt 0:00:50]} b6 {[%emt 0:06:00]} 13. Nb5 {[%emt 0:06:34]} Ne6 {[%emt 0:17:24]} 14. Nc4 {[%emt 0:04:05][%cal Rc4d6]} Ne8 {[%emt 0:03:07]} (14... Ba6 $11 15. Ncxd6 (15. Nbxd6 $2 b5 $19) 15... Bxd6 16. Nxd6 (16. Qxd6 Qxd6 17. Nxd6 Nd4 $11) 16... Bxf1 17. Rxf1 Qc7 (17... Nd4 18. Nf5 $11)) 15. Be3 $16 {[%emt 0:07:17]} Nc5 {[%emt 0:01:50]} 16. Bxc5 {[%emt 0:05:43]} bxc5 {[%emt 0:00:18]} 17. Ne3 {[%emt 0:01:40] Excellent horsemanship.} Bb7 {[%emt 0:16:18]} 18. Nf5 {[%emt 0:14:45]} g6 {[%emt 0:02:18]} 19. Nxe7+ {[%emt 0:00:53]} Qxe7 {[%emt 0:00:02]} 20. Bc4 {[%emt 0:00:09]} Kg7 {[%emt 0:05:17]} 21. Bd5 {[%emt 0:03:03]} Ra6 {[%emt 0:02:49]} 22. Re3 {[%emt 0:04:16]} (22. b3 $142) 22... f5 {[%emt 0:07:42]} (22... Bxd5 $11 23. Qxd5 Nf6) 23. c4 {[%emt 0:05:07]} (23. exf5 $14 {is more appropriate.} Rxf5 24. Bxb7 Qxb7 25. c4) 23... fxe4 {[%emt 0:02:51]} 24. Bxe4 {[%emt 0:03:23]} Bxe4 {[%emt 0:02:57]} 25. Rxe4 {[%emt 0:00:10]} Qf7 {[%emt 0:00:36]} (25... Nc7 $11 {keeps the balance.}) 26. Qe2 {[%emt 0:01:10] Active counter play!} Nf6 {[%emt 0:08:32][%cal Be8f6,Bf6h5,Bh5f4][%mdl 32]} 27. Re3 {[%emt 0:02:41]} Nh5 {[%emt 0:00:27]} 28. Rd1 {[%emt 0:02:29]} Nf4 {[%emt 0:01:28]} 29. Qc2 {[%emt 0:00:49]} Qe7 {[%emt 0:01:54]} 30. Qe4 {[%emt 0:04:09]} Rf6 {[%emt 0:04:02]} 31. Kh2 {[%emt 0:04:56]} Ne6 {[%emt 0:01:17][%cal Of6f4]} 32. Rd2 {[%emt 0:03:21]} (32. f3 $14) 32... Rf4 $11 {[%emt 0:01:30]} 33. Qd5 {[%emt 0:02:04][%cal Rb5d6]} Nd4 {[%emt 0:00:43]} 34. Nxd4 {[%emt 0:05:05]} cxd4 {[%emt 0:00:01]} 35. Rxd4 {[%emt 0:00:40]} Rxf2 {[%emt 0:00:29]} ({Much weaker is} 35... Rxd4 36. Qxd4 exd4 37. Rxe7+ Kf6 38. Re4 $16 (38. Rxh7 $2 {is the wrong capture.} d3 $19)) 36. Rd2 {[%emt 0:00:22]} Rxd2 {[%emt 0:01:51]} 37. Qxd2 {[%emt 0:00:06][%mdl 4096] Endgame KQR-KQR} Qf7 {[%emt 0:00:43]} 38. Re4 {[%emt 0:01:31] Prevents Qf4+.} Qb7 {[%emt 0:01:43]} 39. Re2 {[%emt 0:02:38]} Qf7 {[%emt 0:01:45]} 40. Re4 {[%emt 0:02:33][%cal Oc4c5]} Qb7 {[%emt 0:00:20]} 41. Qc2 {[%emt 0:03:27]} Rb6 {[%emt 0:04:32]} 42. Re2 {[%emt 0:00:48]} Qc6 {[%emt 0:02:07]} 43. Qc3 {[%emt 0:02:30]} Qc5 {[%emt 0:02:45]} 44. Rd2 {[%emt 0:03:00]} Rc6 {[%emt 0:04:18]} 45. b3 {[%emt 0:01:54]} axb3 {[%emt 0:00:08]} 46. axb3 {[%emt 0:00:03]} Rc7 {[%emt 0:02:41]} 47. Qd3 {[%emt 0:02:01]} Rb7 {[%emt 0:01:37] Weighted Error Value: White=0.16 (very precise) /Black=0.19 (very precise)   Mistake:       	White=4     	Black=3      Inaccurate:     	White=7     	Black=5      OK:         	White=13    	Black=5      Best:        	White=1     	Black=3} 1-0

[Event "Frauenbundesliga 2024-25"]
[Site "Germany"]
[Date "2025.01.25"]
[Round "3.11"]
[White "Guichard, Pauline"]
[Black "Trunz, Michelle"]
[Result "1-0"]
[Annotator "TA"]
[ECO "D11"]
[WhiteElo "2357"]
[BlackElo "2107"]
[PlyCount "67"]
[EventDate "2024.11.06"]
[EventType "team-tourn"]
[EventCountry "GER"]
[SourceTitle "playchess.com"]
[Source "ChessBase"]
[SourceQuality "1"]
[WhiteTeam "Schwaebisch Hall"]
[BlackTeam "Hemer 1932"]
[TimeControl "40/5400+30:1800+30"]

{[%evp 10,67,10,19,60,56,61,71,117,68,79,73,155,164,158,162,164,142,234,225,262,239,331,330,331,337,327,331,374,363,345,358,366,319,408,400,408,392,414,403,549,544,827,891,927,931,941,936,934,898,1239,1231,1406,1695,1858,1388,1577,1434,1257,1233]} 1. d4 {[%emt 0:00:02]} d5 {[%emt 0:00:09]} 2. c4 {[%emt 0:00:08]} c6 {[%emt 0:00:05]} 3. Nf3 {[%emt 0:00:13]} Nf6 {[%emt 0:00:18]} 4. e3 {[%emt 0:00:11]} Bg4 {[%emt 0:00:41]} 5. Qb3 {[%emt 0:01:18]} Qb6 {[%emt 0:03:39]} 6. Ne5 {[%emt 0:00:53]} dxc4 {[%emt 0:03:48] D11: Slav Defence: 3 Nf3 sidelines and 3...Nf6 4 e3 Bg4.} 7. Bxc4 $146 {[%emt 0:03:06]} (7. Qxb6 axb6 8. Nxg4 Nxg4 9. Bxc4 e6 10. e4 Nf6 11. f3 Na6 12. Ke2 Be7 13. Be3 O-O 14. Nd2 {½-½ Komissarov,A (2207)-Grybas,G (2006) IBCA Wch blind 14th 2019 (8)}) 7... Qxb3 $1 {[%emt 0:02:25]} 8. Bxb3 {[%emt 0:08:54]} e6 {[%emt 0:00:24]} (8... Bh5 $142) 9. Nc3 {[%emt 0:03:23]} ({Better is} 9. e4 $16) 9... Bf5 {[%emt 0:08:02]} 10. f3 {[%emt 0:01:15]} Nbd7 {[%emt 0:03:02] [#]} (10... Nfd7 $142) 11. e4 $1 $16 {[%emt 0:04:38]} Bg6 {[%emt 0:00:46] [#]} 12. h4 $1 {[%emt 0:01:58] White is much more active. The black rooks are passive.} Bd6 {[%emt 0:31:07]} 13. Bf4 {[%emt 0:04:40]} Bxe5 {[%emt 0:06:12]} (13... Bb8 $16 {was called for.} 14. Nd3 h5) 14. dxe5 $18 {[%emt 0:02:11]} Nc5 {[%emt 0:11:33]} 15. O-O-O {[%emt 0:03:36]} Nd5 {[%emt 0:08:34]} 16. Bxd5 {[%emt 0:05:45]} exd5 {[%emt 0:01:54] Black is weak on the dark squares} 17. Be3 {[%emt 0:00:40]} ({Inferior is} 17. exd5 Nd3+ 18. Rxd3 Bxd3 $11) 17... Nxe4 {[%emt 0:05:09]} 18. fxe4 {[%emt 0:00:32]} dxe4 {[%emt 0:00:26]} 19. h5 {[%emt 0:06:10]} Bf5 {[%emt 0:00:15]} 20. Rdf1 {[%emt 0:00:39]} Be6 {[%emt 0:02:31]} 21. Nxe4 {[%emt 0:00:35]} Bxa2 {[%emt 0:00:52]} 22. Nd6+ {[%emt 0:01:30]} Ke7 {[%emt 0:00:10]} 23. Nxb7 {[%emt 0:04:56]} Bd5 {[%emt 0:03:28]} 24. Bg5+ {[%emt 0:02:10]} Ke6 {[%emt 0:00:32]} 25. h6 {[%emt 0:00:22] White is clearly winning.} Rhg8 {[%emt 0:02:44]} 26. hxg7 {[%emt 0:00:52]} Rxg7 {[%emt 0:00:02]} 27. Bf6 {[%emt 0:00:44][%cal Rb7c5]} Bxg2 {[%emt 0:01:44]} 28. Bxg7 {[%emt 0:00:14]} Bxf1 {[%emt 0:00:40]} 29. Rxf1 {[%emt 0:00:09]} Rg8 {[%emt 0:01:11]} 30. Bf6 {[%emt 0:01:09] And now Nd8+ would win.} Kd5 {[%emt 0:01:26]} 31. Rd1+ {[%emt 0:00:06]} Kc4 {[%emt 0:00:32]} 32. Nd6+ {[%emt 0:00:05]} Kb3 {[%emt 0:00:38]} 33. Rd3+ {[%emt 0:00:23]} Kb4 {[%emt 0:00:23]} 34. Nxf7 {[%emt 0:00:05] Weighted Error Value: White=0.05 (flawless) /Black=0.62  Mistake:       	White=1     	Black=3      Inaccurate:     	---       	Black=3      OK:         	White=9     	Black=5      Best:        	White=1     	---        Strong:       	White=2     	Black=1} 1-0